Department Family,Entity,Date Paid,Expense Type,Expense Area,Supplier,Transaction Number,Amount (�),Supplier VAT Registration Number
BEIS,Met Office,2022-07-06,11 SERVICES,TECHNOLOGY AND CIO,AMAZON WEB SERVICES INC.,10670,17758.16,N/A
BEIS,Met Office,2022-07-06,07 EQUIPMENT,SERVICES,METOCEAN TELEMATICS LTD,10681,26.48,-
BEIS,Met Office,2022-07-06,11 SERVICES,SERVICES,METOCEAN TELEMATICS LTD,10681,250.66,-
BEIS,Met Office,2022-07-06,11 SERVICES,PEOPLE,PLURALSIGHT,10682,1574.23,EU826020045
BEIS,Met Office,2022-07-20,11 SERVICES,PEOPLE,PLURALSIGHT,10690,1007.82,EU826020045
BEIS,Met Office,2022-07-20,11 SERVICES,SERVICES,NSSL GLOBAL LTD,10696,57.22,725151948
BEIS,Met Office,2022-07-20,11 SERVICES,SERVICES,NSSL GLOBAL LTD,10697,73.57,725151948
BEIS,Met Office,2022-07-20,11 SERVICES,PROGRAMMES,UCAR INCOMING PAYMENTS,10701,8750.08,-
BEIS,Met Office,2022-07-27,11 SERVICES,MARKETS,RIMES,10702,36810.9,-
BEIS,Met Office,2022-07-20,11 SERVICES,MARKETS,"INTELLOVATIONS, LLC",10709,1745.05,-
BEIS,Met Office,2022-07-27,11 SERVICES,MARKETS,ICIMOD,10723,37046.94,-
BEIS,Met Office,2022-07-20,11 SERVICES,MARKETS,CONSULTEC,23819,382.48,400005915
BEIS,Met Office,2022-07-06,STOCK,SERVICES,VAISALA LTD,23902,0,336100011
BEIS,Met Office,2022-07-06,TRADE CREDITORS,SERVICES,VAISALA LTD,23902,7655.73,336100011
BEIS,Met Office,2022-07-06,11 SERVICES,MARKETS,"IBL SOFTWARE ENGINEERING, SPOL S.R.O.",23932,101204.03,SK2020241883
BEIS,Met Office,2022-07-20,07 EQUIPMENT,SERVICES,VAISALA LTD,23935,8441.74,336100011
BEIS,Met Office,2022-07-27,11 SERVICES,MARKETS,ECMWF,23965,914.77,NOTVATREG
BEIS,Met Office,2022-07-27,11 SERVICES,MARKETS,ECMWF,23966,255.7,NOTVATREG
BEIS,Met Office,2022-07-27,11 SERVICES,MARKETS,ECMWF,23967,30188.57,NOTVATREG
BEIS,Met Office,2022-07-27,11 SERVICES,MARKETS,ECMWF,23968,542.56,NOTVATREG
BEIS,Met Office,2022-07-27,11 SERVICES,MARKETS,ECMWF,23969,5468.42,NOTVATREG
BEIS,Met Office,2022-07-27,11 SERVICES,MARKETS,ECMWF,23970,540.16,NOTVATREG
BEIS,Met Office,2022-07-27,11 SERVICES,MARKETS,ECMWF,23971,30188.57,NOTVATREG
BEIS,Met Office,2022-07-27,11 SERVICES,MARKETS,ECMWF,23972,4939.92,NOTVATREG
BEIS,Met Office,2022-07-27,11 SERVICES,MARKETS,ECMWF,23973,1280.85,NOTVATREG
BEIS,Met Office,2022-07-27,11 SERVICES,MARKETS,ECMWF,23974,30188.57,NOTVATREG
BEIS,Met Office,2022-07-27,11 SERVICES,MARKETS,ECMWF,23975,28556.75,NOTVATREG
BEIS,Met Office,2022-07-27,11 SERVICES,MARKETS,ECMWF,23976,2157.41,NOTVATREG
BEIS,Met Office,2022-07-27,11 SERVICES,MARKETS,ECMWF,23977,3410.05,NOTVATREG
BEIS,Met Office,2022-07-27,11 SERVICES,MARKETS,ECMWF,23978,441.49,NOTVATREG
BEIS,Met Office,2022-07-27,11 SERVICES,MARKETS,ECMWF,23979,30188.57,NOTVATREG
BEIS,Met Office,2022-07-27,11 SERVICES,MARKETS,ECMWF,23980,15583.35,NOTVATREG
BEIS,Met Office,2022-07-27,11 SERVICES,MARKETS,ECMWF,23981,30188.57,NOTVATREG
BEIS,Met Office,2022-07-27,11 SERVICES,MARKETS,ECMWF,23982,3845.69,NOTVATREG
BEIS,Met Office,2022-07-27,11 SERVICES,MARKETS,ECMWF,23983,244.88,NOTVATREG
BEIS,Met Office,2022-07-27,11 SERVICES,MARKETS,ECMWF,23984,30188.57,NOTVATREG
BEIS,Met Office,2022-07-27,11 SERVICES,MARKETS,ECMWF,23985,3005.97,NOTVATREG
BEIS,Met Office,2022-07-27,11 SERVICES,MARKETS,ECMWF,23986,30617.99,NOTVATREG
BEIS,Met Office,2022-07-27,11 SERVICES,MARKETS,ECMWF,23987,2147.12,NOTVATREG
BEIS,Met Office,2022-07-27,11 SERVICES,MARKETS,ECMWF,23988,4978.61,NOTVATREG
BEIS,Met Office,2022-07-27,11 SERVICES,MARKETS,ECMWF,23989,30188.57,NOTVATREG
BEIS,Met Office,2022-07-27,11 SERVICES,MARKETS,ECMWF,23990,30188.57,NOTVATREG
BEIS,Met Office,2022-07-27,11 SERVICES,MARKETS,ECMWF,23991,1840.31,NOTVATREG
BEIS,Met Office,2022-07-27,11 SERVICES,MARKETS,ECMWF,23992,460.29,NOTVATREG
BEIS,Met Office,2022-07-27,11 SERVICES,MARKETS,ECMWF,23993,2576.55,NOTVATREG
BEIS,Met Office,2022-07-27,11 SERVICES,MARKETS,ECMWF,23994,1288.28,NOTVATREG
BEIS,Met Office,2022-07-27,11 SERVICES,MARKETS,ECMWF,23995,692.43,NOTVATREG
BEIS,Met Office,2022-07-27,11 SERVICES,MARKETS,ECMWF,23996,11089.31,NOTVATREG
BEIS,Met Office,2022-07-27,11 SERVICES,MARKETS,ECMWF,23997,30188.57,NOTVATREG
BEIS,Met Office,2022-07-27,11 SERVICES,MARKETS,ECMWF,23998,915.8,NOTVATREG
BEIS,Met Office,2022-07-27,11 SERVICES,MARKETS,ECMWF,23999,564.59,NOTVATREG
BEIS,Met Office,2022-07-27,11 SERVICES,MARKETS,ECMWF,24000,7882.39,NOTVATREG
BEIS,Met Office,2022-07-27,11 SERVICES,MARKETS,ECMWF,24001,858.85,NOTVATREG
BEIS,Met Office,2022-07-27,11 SERVICES,MARKETS,ECMWF,24002,554.36,NOTVATREG
BEIS,Met Office,2022-07-27,11 SERVICES,MARKETS,ECMWF,24003,20236.29,NOTVATREG
BEIS,Met Office,2022-07-27,11 SERVICES,MARKETS,ECMWF,24004,1092.96,NOTVATREG
BEIS,Met Office,2022-07-27,11 SERVICES,MARKETS,ECMWF,24005,4348.7,NOTVATREG
BEIS,Met Office,2022-07-27,11 SERVICES,MARKETS,ECMWF,24006,382.15,NOTVATREG
BEIS,Met Office,2022-07-27,11 SERVICES,MARKETS,ECMWF,24007,1019.88,NOTVATREG
BEIS,Met Office,2022-07-27,11 SERVICES,MARKETS,ECMWF,24008,9952.28,NOTVATREG
BEIS,Met Office,2022-07-27,11 SERVICES,MARKETS,ECMWF,24009,9414.32,NOTVATREG
BEIS,Met Office,2022-07-27,11 SERVICES,MARKETS,ECMWF,24010,69.49,NOTVATREG
BEIS,Met Office,2022-07-27,11 SERVICES,MARKETS,ECMWF,24011,19142.44,NOTVATREG
BEIS,Met Office,2022-07-27,11 SERVICES,MARKETS,ECMWF,24012,2412.42,NOTVATREG
BEIS,Met Office,2022-07-27,11 SERVICES,MARKETS,ECMWF,24013,28556.75,NOTVATREG
BEIS,Met Office,2022-07-27,11 SERVICES,MARKETS,ECMWF,24014,8275.02,NOTVATREG
BEIS,Met Office,2022-07-27,11 SERVICES,MARKETS,ECMWF,24015,5576.22,NOTVATREG
BEIS,Met Office,2022-07-27,11 SERVICES,MARKETS,ECMWF,24016,1019.88,NOTVATREG
BEIS,Met Office,2022-07-27,11 SERVICES,MARKETS,ECMWF,24017,1717.7,NOTVATREG
BEIS,Met Office,2022-07-27,11 SERVICES,MARKETS,ECMWF,24018,30188.57,NOTVATREG
BEIS,Met Office,2022-07-27,11 SERVICES,MARKETS,ECMWF,24019,6870.8,NOTVATREG
BEIS,Met Office,2022-07-27,11 SERVICES,MARKETS,ECMWF,24020,7307.78,NOTVATREG
BEIS,Met Office,2022-07-27,11 SERVICES,MARKETS,ECMWF,24021,1481.58,NOTVATREG
BEIS,Met Office,2022-07-27,11 SERVICES,MARKETS,ECMWF,24022,9468.62,NOTVATREG
BEIS,Met Office,2022-07-27,11 SERVICES,MARKETS,ECMWF,24023,2262.22,NOTVATREG
BEIS,Met Office,2022-07-27,11 SERVICES,MARKETS,ECMWF,24024,30188.57,NOTVATREG
BEIS,Met Office,2022-07-27,11 SERVICES,MARKETS,ECMWF,24025,1127.51,NOTVATREG
BEIS,Met Office,2022-07-27,11 SERVICES,MARKETS,ECMWF,24026,30188.57,NOTVATREG
BEIS,Met Office,2022-07-27,11 SERVICES,MARKETS,ECMWF,24027,1717.7,NOTVATREG
BEIS,Met Office,2022-07-27,11 SERVICES,MARKETS,ECMWF,24028,8588.5,NOTVATREG
BEIS,Met Office,2022-07-27,11 SERVICES,MARKETS,ECMWF,24029,30188.57,NOTVATREG
BEIS,Met Office,2022-07-06,11 SERVICES,CHIEF FINANCIAL OFFICER,TELIA FINLAND OYJ,24030,187.23,FI14756079
BEIS,Met Office,2022-07-06,11 SERVICES,CHIEF FINANCIAL OFFICER,DBS FINANCE RECEIPTS CTS,24032,167.58,888805068
BEIS,Met Office,2022-07-20,11 SERVICES,SCIENCE,RIUVARBEL S.L,24042,3637.23,-
BEIS,Met Office,2022-07-27,11 SERVICES,MARKETS,Deltares,24118,1611.4,NL800097476B01
BEIS,Met Office,2022-07-27,11 SERVICES,CHIEF FINANCIAL OFFICER,EIR,24120,51.82,4736919B
BEIS,Met Office,2022-07-20,11 SERVICES,PROGRAMMES,University Of Exeter,435468,7500,142047795
BEIS,Met Office,2022-07-21,11 SERVICES,PROGRAMMES,University Of Oxford,446984,16833.36,125506730
BEIS,Met Office,2022-07-07,11 SERVICES,CHIEF FINANCIAL OFFICER,British Red Cross Society,463866,-159,706926227
BEIS,Met Office,2022-07-06,13 MISCELLANEOUS,CHIEF FINANCIAL OFFICER,Royal Meteorological Society,464581,103.43,-
BEIS,Met Office,2022-07-11,11 SERVICES,TECHNOLOGY AND CIO,BAE SYSTEMS APPLIED INTELLIGENCE LIMITED,465693,8437.5,GB641407169
BEIS,Met Office,2022-07-26,FIXTURE & FITTINGS,CHIEF FINANCIAL OFFICER,THORLUX LIGHTING,465698,503.04,GB 109 939 440
BEIS,Met Office,2022-07-29,06 ACCOMMODATION,CHIEF FINANCIAL OFFICER,Exeter City Council,465749,140288,142335594
BEIS,Met Office,2022-07-27,11 SERVICES,SCIENCE,University Of Exeter,466032,12599,142047795
BEIS,Met Office,2022-07-21,11 SERVICES,PROGRAMMES,University Of Oxford,466316,-16833.36,125506730
BEIS,Met Office,2022-07-20,07 EQUIPMENT,SERVICES,APC TECHNOLOGY GROUP PLC,467113,2314,GB 373 584 720
BEIS,Met Office,2022-07-20,11 SERVICES,SERVICES,APC TECHNOLOGY GROUP PLC,467113,25,GB 373 584 720
BEIS,Met Office,2022-07-20,12 INTERNATIONAL,MARKETS,TOTEX CORPORATION,467397,20.9,-
BEIS,Met Office,2022-07-20,12 INTERNATIONAL,MARKETS,TOTEX CORPORATION,467397,3520,-
BEIS,Met Office,2022-07-20,12 INTERNATIONAL,MARKETS,TOTEX CORPORATION,467397,720,-
BEIS,Met Office,2022-07-26,FIXTURE & FITTINGS,CHIEF FINANCIAL OFFICER,THORLUX LIGHTING,467747,-1492.62,GB 109 939 440
BEIS,Met Office,2022-07-18,11 SERVICES,PEOPLE,SCIENCE MEDIA CENTRE,467748,4000,-
BEIS,Met Office,2022-07-01,11 SERVICES,PROGRAMMES,FLYFORM LTD,468168,-8437.5,237333808
BEIS,Met Office,2022-07-01,11 SERVICES,PROGRAMMES,FLYFORM LTD,468169,-8437.5,237333808
BEIS,Met Office,2022-07-05,11 SERVICES,PEOPLE,CIVICA UK LIMITED,468199,14008.66,391171065
BEIS,Met Office,2022-07-12,08 SOFTWARE LICENCES,TECHNOLOGY AND CIO,DO NOT USE - PHOENIX SOFTWARE LIMITED,468227,20853.4,755349015
BEIS,Met Office,2022-07-12,08 SOFTWARE LICENCES,TECHNOLOGY AND CIO,DO NOT USE - PHOENIX SOFTWARE LIMITED,468228,48366.96,755349015
BEIS,Met Office,2022-07-12,08 SOFTWARE LICENCES,TECHNOLOGY AND CIO,DO NOT USE - PHOENIX SOFTWARE LIMITED,468229,48351.96,755349015
BEIS,Met Office,2022-07-12,08 SOFTWARE LICENCES,TECHNOLOGY AND CIO,DO NOT USE - PHOENIX SOFTWARE LIMITED,468230,39918.8,755349015
BEIS,Met Office,2022-07-12,08 SOFTWARE LICENCES,TECHNOLOGY AND CIO,DO NOT USE - PHOENIX SOFTWARE LIMITED,468231,44363.76,755349015
BEIS,Met Office,2022-07-12,11 SERVICES,CHIEF FINANCIAL OFFICER,POSTURITE (UK) LTD,468347,59.95,583565114
BEIS,Met Office,2022-07-20,11 SERVICES,PROGRAMMES,BJSS LIMITED,468387,15637,613295452
BEIS,Met Office,2022-07-11,11 SERVICES,TECHNOLOGY AND CIO,BAE SYSTEMS APPLIED INTELLIGENCE LIMITED,468530,6750,GB641407169
BEIS,Met Office,2022-07-11,11 SERVICES,TECHNOLOGY AND CIO,BAE SYSTEMS APPLIED INTELLIGENCE LIMITED,468532,11220,GB641407169
BEIS,Met Office,2022-07-01,11 SERVICES,TECHNOLOGY AND CIO,FLYFORM LTD,468546,995,237333808
BEIS,Met Office,2022-07-01,11 SERVICES,SERVICES,FLYFORM LTD,468547,1108.5,237333808
BEIS,Met Office,2022-07-01,11 SERVICES,PROGRAMMES,FLYFORM LTD,468907,23880,237333808
BEIS,Met Office,2022-07-01,11 SERVICES,PROGRAMMES,FLYFORM LTD,468907,27860,237333808
BEIS,Met Office,2022-07-01,11 SERVICES,PROGRAMMES,FLYFORM LTD,468907,2625,237333808
BEIS,Met Office,2022-07-20,11 SERVICES,PROGRAMMES,University Of Exeter,468934,24139.68,142047795
BEIS,Met Office,2022-07-20,11 SERVICES,PROGRAMMES,"IBL SOFTWARE ENGINEERING, SPOL S.R.O.",468939,5551.12,SK2020241883
BEIS,Met Office,2022-07-07,11 SERVICES,CHIEF FINANCIAL OFFICER,POSTURITE (UK) LTD,469027,417.1,583565114
BEIS,Met Office,2022-07-12,11 SERVICES,CHIEF FINANCIAL OFFICER,POSTURITE (UK) LTD,469029,417.1,583565114
BEIS,Met Office,2022-07-11,11 SERVICES,CHIEF FINANCIAL OFFICER,C S TODD & ASSOCIATES LTD,469131,995,384332841
BEIS,Met Office,2022-07-20,11 SERVICES,PROGRAMMES,University Of Exeter,469188,-7500,142047795
BEIS,Met Office,2022-07-05,STOCK,SERVICES,Campbell Scientific Ltd,469231,0,428453933
BEIS,Met Office,2022-07-05,TRADE CREDITORS,SERVICES,Campbell Scientific Ltd,469231,26906.25,428453933
BEIS,Met Office,2022-07-05,11 SERVICES,SERVICES,Campbell Scientific Ltd,469231,56,428453933
BEIS,Met Office,2022-07-20,11 SERVICES,MARKETS,SOUTH AFRICAN WEATHER SERVICES,469237,1510.55,-
BEIS,Met Office,2022-07-01,11 SERVICES,CHIEF FINANCIAL OFFICER,MITIE SECURITY LTD,469252,3117,416706654
BEIS,Met Office,2022-07-01,11 SERVICES,CHIEF FINANCIAL OFFICER,MITIE SECURITY LTD,469252,7273.5,416706654
BEIS,Met Office,2022-07-01,11 SERVICES,CHIEF FINANCIAL OFFICER,MITIE SECURITY LTD,469253,20780.59,416706654
BEIS,Met Office,2022-07-01,10 EQUIPMENT MAINTENANCE,SERVICES,RAISE TELECOMS LTD,469301,20579,166016521
BEIS,Met Office,2022-07-04,03 STAFF COSTS T&S,SERVICES,FALKLAND ISLAND COMPANY LTD,469302,1317,N/A
BEIS,Met Office,2022-07-06,11 SERVICES,CHIEF FINANCIAL OFFICER,BT plc,469304,7432.8,245719348
BEIS,Met Office,2022-07-07,11 SERVICES,CHIEF FINANCIAL OFFICER,POSTURITE (UK) LTD,469316,40.94,583565114
BEIS,Met Office,2022-07-07,11 SERVICES,CHIEF FINANCIAL OFFICER,POSTURITE (UK) LTD,469317,50,583565114
BEIS,Met Office,2022-07-07,11 SERVICES,CHIEF FINANCIAL OFFICER,British Red Cross Society,469321,892,706926227
BEIS,Met Office,2022-07-05,11 SERVICES,PROGRAMMES,University Of Bristol,469348,50000,991261800
BEIS,Met Office,2022-07-04,11 SERVICES,PROGRAMMES,University Of Birmingham,469349,64008.8,729856187
BEIS,Met Office,2022-07-04,11 SERVICES,PROGRAMMES,University Of Birmingham,469350,64782,729856187
BEIS,Met Office,2022-07-05,06 ACCOMMODATION,CHIEF FINANCIAL OFFICER,UK CENTRE FOR ECOLOGY & HYDROLOGY (UKCEH),469357,2772.65,336940192
BEIS,Met Office,2022-07-01,11 SERVICES,PROGRAMMES,Dstl,469359,3624.05,888805166
BEIS,Met Office,2022-07-01,11 SERVICES,PROGRAMMES,Dstl,469360,6203.3,888805166
BEIS,Met Office,2022-07-01,11 SERVICES,PROGRAMMES,Dstl,469361,5591.2,888805166
BEIS,Met Office,2022-07-01,11 SERVICES,PROGRAMMES,Dstl,469363,11121.45,888805166
BEIS,Met Office,2022-07-01,11 SERVICES,PROGRAMMES,Dstl,469365,3704.7,888805166
BEIS,Met Office,2022-07-01,11 SERVICES,PROGRAMMES,Dstl,469366,8359.13,888805166
BEIS,Met Office,2022-07-05,11 SERVICES,PROGRAMMES,University Of Bristol,469368,45546.07,991261800
BEIS,Met Office,2022-07-05,13 MISCELLANEOUS,PEOPLE,CALM WATERS COUNSELLING,469379,160,-
BEIS,Met Office,2022-07-01,11 SERVICES,SERVICES,VOLKSWAGEN GROUP LEASING,469380,3697.1,BG745963883
BEIS,Met Office,2022-07-01,11 SERVICES,SERVICES,VOLKSWAGEN GROUP LEASING,469381,3697.1,BG745963883
BEIS,Met Office,2022-07-01,11 SERVICES,SERVICES,VOLKSWAGEN GROUP LEASING,469382,3697.1,BG745963883
BEIS,Met Office,2022-07-01,11 SERVICES,SERVICES,VOLKSWAGEN GROUP LEASING,469383,3697.1,BG745963883
BEIS,Met Office,2022-07-01,11 SERVICES,SERVICES,VOLKSWAGEN GROUP LEASING,469384,3697.1,BG745963883
BEIS,Met Office,2022-07-01,11 SERVICES,SERVICES,VOLKSWAGEN GROUP LEASING,469385,3697.1,BG745963883
BEIS,Met Office,2022-07-01,11 SERVICES,SERVICES,VOLKSWAGEN GROUP LEASING,469386,3924.25,BG745963883
BEIS,Met Office,2022-07-01,11 SERVICES,SERVICES,VOLKSWAGEN GROUP LEASING,469387,3924.25,BG745963883
BEIS,Met Office,2022-07-01,11 SERVICES,SERVICES,VOLKSWAGEN GROUP LEASING,469388,3924.25,BG745963883
BEIS,Met Office,2022-07-01,11 SERVICES,SERVICES,VOLKSWAGEN GROUP LEASING,469389,3924.25,BG745963883
BEIS,Met Office,2022-07-01,11 SERVICES,SERVICES,VOLKSWAGEN GROUP LEASING,469390,3924.25,BG745963883
BEIS,Met Office,2022-07-11,04 CONTRACTORS,PEOPLE,MATRIX SCM LIMITED,469391,275991.28,249 5734 68
BEIS,Met Office,2022-07-12,06 ACCOMMODATION,CHIEF FINANCIAL OFFICER,EDF ENERGY CUSTOMERS PLC,469392,-151428.19,523041202
BEIS,Met Office,2022-07-12,06 ACCOMMODATION,CHIEF FINANCIAL OFFICER,EDF ENERGY CUSTOMERS PLC,469393,151567.19,523041202
BEIS,Met Office,2022-07-12,06 ACCOMMODATION,CHIEF FINANCIAL OFFICER,EDF ENERGY CUSTOMERS PLC,469394,-171990.41,523041202
BEIS,Met Office,2022-07-12,06 ACCOMMODATION,CHIEF FINANCIAL OFFICER,EDF ENERGY CUSTOMERS PLC,469395,168650.47,523041202
BEIS,Met Office,2022-07-12,06 ACCOMMODATION,CHIEF FINANCIAL OFFICER,EDF ENERGY CUSTOMERS PLC,469396,-168042.25,523041202
BEIS,Met Office,2022-07-12,06 ACCOMMODATION,CHIEF FINANCIAL OFFICER,EDF ENERGY CUSTOMERS PLC,469397,168207.45,523041202
BEIS,Met Office,2022-07-12,06 ACCOMMODATION,CHIEF FINANCIAL OFFICER,EDF ENERGY CUSTOMERS PLC,469398,-162998.12,523041202
BEIS,Met Office,2022-07-12,06 ACCOMMODATION,CHIEF FINANCIAL OFFICER,EDF ENERGY CUSTOMERS PLC,469399,160338.05,523041202
BEIS,Met Office,2022-07-01,13 MISCELLANEOUS,CHIEF FINANCIAL OFFICER,EDEN SPRINGS UK LTD,469414,616.14,232160411
BEIS,Met Office,2022-07-01,13 MISCELLANEOUS,CHIEF FINANCIAL OFFICER,NORSCOTT VENDING SERVICES LTD,469415,85,751402071
BEIS,Met Office,2022-07-01,06 ACCOMMODATION,CHIEF FINANCIAL OFFICER,MAPP (PROPERTY MANAGEMENT) LTD,469416,4499.3,725900735
BEIS,Met Office,2022-07-06,03 STAFF COSTS T&S,SERVICES,DBS FINANCE RECEIPTS CTS,469417,8049,888805068
BEIS,Met Office,2022-07-04,11 SERVICES,CHIEF FINANCIAL OFFICER,BABBLE CLOUD LIMITED,469419,1445.18,GB206270049
BEIS,Met Office,2022-07-04,11 SERVICES,PEOPLE,LUMESSE LTD,469420,35340.12,266385668
BEIS,Met Office,2022-07-11,11 SERVICES,TECHNOLOGY AND CIO,BAE SYSTEMS APPLIED INTELLIGENCE LIMITED,469422,7818.75,GB641407169
BEIS,Met Office,2022-07-11,11 SERVICES,TECHNOLOGY AND CIO,BAE SYSTEMS APPLIED INTELLIGENCE LIMITED,469423,9399.88,GB641407169
BEIS,Met Office,2022-07-04,03 STAFF COSTS T&S,CHIEF FINANCIAL OFFICER,ENTERPRISE RENT A CAR UK LTD,469459,52.56,215557314
BEIS,Met Office,2022-07-04,11 SERVICES,CHIEF FINANCIAL OFFICER,LEASEDRIVE RENTAL MANAGEMENT LTD,469466,471.27,733546040
BEIS,Met Office,2022-07-06,11 SERVICES,PEOPLE,MOMENTUM INCORPORATED,469467,12800,598958541
BEIS,Met Office,2022-07-06,11 SERVICES,PEOPLE,DESIGNAMITE LTD,469468,420,817819989
BEIS,Met Office,2022-07-04,13 MISCELLANEOUS,SERVICES,IMAGETEK SYSTEMS LTD,469469,1302.07,GB586331424
BEIS,Met Office,2022-07-06,11 SERVICES,TECHNOLOGY AND CIO,QA LTD,469470,860,864455303
BEIS,Met Office,2022-07-04,11 SERVICES,MARKETS,ULTRA ELECTRONICS LTD NUCLEAR CONTROL SYSTEMS,469472,8152.88,123340754
BEIS,Met Office,2022-07-04,11 SERVICES,MARKETS,ULTRA ELECTRONICS LTD NUCLEAR CONTROL SYSTEMS,469473,8152.88,123340754
BEIS,Met Office,2022-07-05,10 EQUIPMENT MAINTENANCE,TECHNOLOGY AND CIO,IP PERFORMANCE LTD,469474,8124,650541851
BEIS,Met Office,2022-07-05,11 SERVICES,CHIEF FINANCIAL OFFICER,TELEFONICA O2 UK LIMITED,469475,50.9,778603785
BEIS,Met Office,2022-07-05,06 ACCOMMODATION,CHIEF FINANCIAL OFFICER,UK CENTRE FOR ECOLOGY & HYDROLOGY (UKCEH),469476,-2772.65,336940192
BEIS,Met Office,2022-07-05,06 ACCOMMODATION,CHIEF FINANCIAL OFFICER,UK CENTRE FOR ECOLOGY & HYDROLOGY (UKCEH),469477,5545.35,336940192
BEIS,Met Office,2022-07-04,FIXTURE & FITTINGS,CHIEF FINANCIAL OFFICER,POSTURITE (UK) LTD,469478,68.85,583565114
BEIS,Met Office,2022-07-04,FIXTURE & FITTINGS,CHIEF FINANCIAL OFFICER,POSTURITE (UK) LTD,469478,2434.74,583565114
BEIS,Met Office,2022-07-20,12 INTERNATIONAL,MARKETS,TOTEX CORPORATION,469479,23.2,-
BEIS,Met Office,2022-07-20,12 INTERNATIONAL,MARKETS,TOTEX CORPORATION,469479,2670,-
BEIS,Met Office,2022-07-20,12 INTERNATIONAL,MARKETS,TOTEX CORPORATION,469479,1330,-
BEIS,Met Office,2022-07-04,07 EQUIPMENT,TECHNOLOGY AND CIO,INSURGO MEDIA SERVICES LTD,469480,5900,979682734
BEIS,Met Office,2022-07-07,11 SERVICES,PEOPLE,TP HEALTH LTD,469481,99,883064608
BEIS,Met Office,2022-07-06,06 ACCOMMODATION,CHIEF FINANCIAL OFFICER,TOTAL GAS & POWER LIMITED,469482,20817.71,689638949
BEIS,Met Office,2022-07-06,06 ACCOMMODATION,CHIEF FINANCIAL OFFICER,TOTAL GAS & POWER LIMITED,469483,19328.24,689638949
BEIS,Met Office,2022-07-27,11 SERVICES,PROGRAMMES,UNIVERSITATBERN,469484,10722.68,280255
BEIS,Met Office,2022-07-27,13 MISCELLANEOUS,SERVICES,MEIHUIZEN INTERNATIONAL,469486,530.81,4450101763
BEIS,Met Office,2022-07-05,06 ACCOMMODATION,CHIEF FINANCIAL OFFICER,ANGLIAN WATER BUSINESS NATIONAL LTD,469487,24.01,51406002
BEIS,Met Office,2022-07-06,11 SERVICES,MARKETS,INSTITUTO NACIONAL DE METEREOLOGIA,469488,2604.89,-
BEIS,Met Office,2022-07-05,10 EQUIPMENT MAINTENANCE,SERVICES,BUSINESS SUPPORT CENTRE LTD,469489,55,927365208
BEIS,Met Office,2022-07-06,06 ACCOMMODATION,CHIEF FINANCIAL OFFICER,EAST ANGLIAN WATER COOLER CO,469490,24.2,676668178
BEIS,Met Office,2022-07-07,06 ACCOMMODATION,CHIEF FINANCIAL OFFICER,POSTURITE (UK) LTD,469491,3330.68,583565114
BEIS,Met Office,2022-07-05,11 SERVICES,PROGRAMMES,University Of Bristol,469492,50000,991261800
BEIS,Met Office,2022-07-05,11 SERVICES,PROGRAMMES,University Of Bristol,469493,45546,991261800
BEIS,Met Office,2022-07-06,11 SERVICES,SERVICES,SOFTWIRE TECHNOLOGY LIMITED,469494,4200,752 1253 57
BEIS,Met Office,2022-07-05,11 SERVICES,PROGRAMMES,University Of Bristol,469495,-50000,991261800
BEIS,Met Office,2022-07-05,11 SERVICES,PROGRAMMES,University Of Bristol,469496,-45546.07,991261800
BEIS,Met Office,2022-07-05,06 ACCOMMODATION,CHIEF FINANCIAL OFFICER,MORAY COUNCIL,469497,170.82,663755506
BEIS,Met Office,2022-07-11,07 EQUIPMENT,SERVICES,QUASAR MICROWAVE TECHNOLOGY LTD,469499,16,209385203
BEIS,Met Office,2022-07-11,07 EQUIPMENT,SERVICES,QUASAR MICROWAVE TECHNOLOGY LTD,469499,1179.6,209385203
BEIS,Met Office,2022-07-05,08 SOFTWARE LICENCES,TECHNOLOGY AND CIO,Ibm United Kingdom Ltd,469500,6292.52,107328000
BEIS,Met Office,2022-07-05,11 SERVICES,TECHNOLOGY AND CIO,SSE CONTRACTING LTD,469501,10912.87,382894546
BEIS,Met Office,2022-07-04,08 SOFTWARE LICENCES,PEOPLE,CATALYST IT,469502,1215.83,978169262
BEIS,Met Office,2022-07-05,10 EQUIPMENT MAINTENANCE,TECHNOLOGY AND CIO,Hewlett Packard Ltd,469505,427999.57,314149679
BEIS,Met Office,2022-07-05,11 SERVICES,PROGRAMMES,Hewlett Packard Ltd,469505,900875.43,314149679
BEIS,Met Office,2022-07-05,06 ACCOMMODATION,CHIEF FINANCIAL OFFICER,EXCEL AV LIMITED,469506,586,994305005
BEIS,Met Office,2022-07-06,13 MISCELLANEOUS,PEOPLE,BROADBEAN TECHNOLOGY LTD,469507,424.71,GB184088778
BEIS,Met Office,2022-07-11,STOCK,SERVICES,Campbell Scientific Ltd,469508,0,428453933
BEIS,Met Office,2022-07-11,TRADE CREDITORS,SERVICES,Campbell Scientific Ltd,469508,17361,428453933
BEIS,Met Office,2022-07-06,05 CONSULTANTS,CHIEF FINANCIAL OFFICER,WT CONSULTANCY (SW) LTD,469509,5950,223 4662 25
BEIS,Met Office,2022-07-05,11 SERVICES,CHIEF FINANCIAL OFFICER,EXPONENTIAL-E,469510,2054.28,GB798572653
BEIS,Met Office,2022-07-05,13 MISCELLANEOUS,PEOPLE,EDENRED I&M (IRS VOUCHERS),469511,25204.2,649 503 520
BEIS,Met Office,2022-07-05,11 SERVICES,CHIEF FINANCIAL OFFICER,HOGAN LOVELLS INTERNATIONAL LLP,469512,14789,GB123371543
BEIS,Met Office,2022-07-05,11 SERVICES,CHIEF FINANCIAL OFFICER,EXPONENTIAL-E,469513,4759.64,GB798572653
BEIS,Met Office,2022-07-05,11 SERVICES,TECHNOLOGY AND CIO,WIREFAST LTD,469514,1879.11,749536001
BEIS,Met Office,2022-07-05,11 SERVICES,TECHNOLOGY AND CIO,WIREFAST LTD,469515,1294.99,749536001
BEIS,Met Office,2022-07-05,11 SERVICES,TECHNOLOGY AND CIO,WIREFAST LTD,469516,475.17,749536001
BEIS,Met Office,2022-07-20,11 SERVICES,CHIEF FINANCIAL OFFICER,ALLSTAR BUSINESS SOLUTIONS LTD,469517,4851.54,747880191
BEIS,Met Office,2022-07-05,11 SERVICES,SERVICES,Boc Ltd,469518,10114.74,226556555
BEIS,Met Office,2022-07-05,06 ACCOMMODATION,CHIEF FINANCIAL OFFICER,TENNIE FACILITIES PROPERTY MANAGEMENT LTD,469519,207.15,982055803
BEIS,Met Office,2022-07-05,06 ACCOMMODATION,MARKETS,HIGHLANDS & ISLANDS AIRPORTS LTD.,469520,141.23,945667772
BEIS,Met Office,2022-07-05,11 SERVICES,CHIEF FINANCIAL OFFICER,Reuters Ltd,469521,2160,397000555
BEIS,Met Office,2022-07-05,11 SERVICES,CHIEF FINANCIAL OFFICER,MITIE SECURITY LTD,469523,99,416706654
BEIS,Met Office,2022-07-07,11 SERVICES,CHIEF FINANCIAL OFFICER,MITIE SECURITY LTD,469524,1388.88,416706654
BEIS,Met Office,2022-07-05,06 ACCOMMODATION,CHIEF FINANCIAL OFFICER,MITIE SECURITY LTD,469525,1170,416706654
BEIS,Met Office,2022-07-05,06 ACCOMMODATION,CHIEF FINANCIAL OFFICER,WINGFIELD DIGBY SETTLED ESTATE,469526,2600,GB 930669020
BEIS,Met Office,2022-07-07,SOFTWARE LICENCES,CHIEF FINANCIAL OFFICER,ADVANCED BUSINESS SOLUTIONS LTD,469527,4462.5,927547983
BEIS,Met Office,2022-07-05,08 SOFTWARE LICENCES,TECHNOLOGY AND CIO,GOOGLE IRELAND LTD,469528,47.99,6388047V
BEIS,Met Office,2022-07-06,11 SERVICES,SERVICES,HITACHI CAPITAL VEHICLE SOLUTIONS,469540,9427.44,GB 823 8248 22
BEIS,Met Office,2022-07-06,08 SOFTWARE LICENCES,TECHNOLOGY AND CIO,Ibm United Kingdom Ltd,469541,9537.7,107328000
BEIS,Met Office,2022-07-06,11 SERVICES,SERVICES,FLYFORM LTD,469542,3980,237333808
BEIS,Met Office,2022-07-07,11 SERVICES,PROGRAMMES,FLYFORM LTD,469543,7500,237333808
BEIS,Met Office,2022-07-05,11 SERVICES,PROGRAMMES,FLYFORM LTD,469544,1243.75,237333808
BEIS,Met Office,2022-07-05,11 SERVICES,PROGRAMMES,FLYFORM LTD,469544,52125,237333808
BEIS,Met Office,2022-07-05,03 STAFF COSTS T&S,CHIEF FINANCIAL OFFICER,ENTERPRISE RENT A CAR UK LTD,469545,245.4,215557314
BEIS,Met Office,2022-07-05,03 STAFF COSTS T&S,CHIEF FINANCIAL OFFICER,ENTERPRISE RENT A CAR UK LTD,469546,2456.72,215557314
BEIS,Met Office,2022-07-07,03 STAFF COSTS T&S,MARKETS,SOLOMON & COMPANY (ST HELENA) PLC,469547,95,-
BEIS,Met Office,2022-07-11,INFORMATION TECHNOLOGY,SERVICES,INMARSAT SOLUTIONS (CANADA) INC,469548,81.52,766144223
BEIS,Met Office,2022-07-05,08 SOFTWARE LICENCES,CHIEF FINANCIAL OFFICER,CEMAR,469549,94.5,915042161
BEIS,Met Office,2022-07-11,INFORMATION TECHNOLOGY,SERVICES,INMARSAT SOLUTIONS (CANADA) INC,469550,40.76,766144223
BEIS,Met Office,2022-07-07,11 SERVICES,CHIEF FINANCIAL OFFICER,POSTURITE (UK) LTD,469551,50,583565114
BEIS,Met Office,2022-07-05,11 SERVICES,PROGRAMMES,FLYFORM LTD,469552,3035,237333808
BEIS,Met Office,2022-07-05,13 MISCELLANEOUS,PEOPLE,EDENRED - CHILDCARE VOUCHERS,469554,12445,649 503 520
BEIS,Met Office,2022-07-11,INFORMATION TECHNOLOGY,SERVICES,INMARSAT SOLUTIONS (CANADA) INC,469555,1701.5,766144223
BEIS,Met Office,2022-07-11,INFORMATION TECHNOLOGY,SERVICES,INMARSAT SOLUTIONS (CANADA) INC,469559,40.76,766144223
BEIS,Met Office,2022-07-07,11 SERVICES,CHIEF FINANCIAL OFFICER,MITIE SECURITY LTD,469561,111.68,416706654
BEIS,Met Office,2022-07-06,10 EQUIPMENT MAINTENANCE,TECHNOLOGY AND CIO,ORACLE CORPORATION UK LTD,469576,35564.32,391313073
BEIS,Met Office,2022-07-07,11 SERVICES,MARKETS,Esri (Uk) Ltd,469577,1841.67,787430791
BEIS,Met Office,2022-07-08,11 SERVICES,MARKETS,ULTRA ELECTRONICS LTD NUCLEAR CONTROL SYSTEMS,469579,4926.81,123340754
BEIS,Met Office,2022-07-06,11 SERVICES,MARKETS,IGAD CLIMATE PREDICTION & APPLICATIONS CNTR,469580,7500,-
BEIS,Met Office,2022-07-08,03 STAFF COSTS T&S,SERVICES,CHARLIE'S TRAVEL LTD,469581,939.12,783848277
BEIS,Met Office,2022-07-18,11 SERVICES,PROGRAMMES,ROWE IT LTD,469582,173381.5,924964394
BEIS,Met Office,2022-07-06,11 SERVICES,PROGRAMMES,ROWE IT LTD,469583,92997.5,924964394
BEIS,Met Office,2022-07-11,11 SERVICES,PROGRAMMES,ROWE IT LTD,469584,14250,924964394
BEIS,Met Office,2022-07-06,11 SERVICES,PROGRAMMES,FUNDACAO ARTHUR BERNARDES - FUNARBE,469585,181759.94,-
BEIS,Met Office,2022-07-06,11 SERVICES,PEOPLE,THE RECRUITMENT NETWORK (MANCHESTER) LTD,469588,1050,591 8127 21
BEIS,Met Office,2022-07-06,08 SOFTWARE LICENCES,SERVICES,SOFTCAT LTD,469589,25000,491848503
BEIS,Met Office,2022-07-07,11 SERVICES,MARKETS,CACI LTD,469590,79260.04,380609841
BEIS,Met Office,2022-07-07,11 SERVICES,CHIEF FINANCIAL OFFICER,BT GLOBAL SERVICES,469591,11584.21,245719348
BEIS,Met Office,2022-07-08,11 SERVICES,SERVICES,FLYFORM LTD,469592,2985,237333808
BEIS,Met Office,2022-07-07,11 SERVICES,PROGRAMMES,FLYFORM LTD,469593,7875,237333808
BEIS,Met Office,2022-07-06,03 STAFF COSTS T&S,SERVICES,FALKLAND ISLAND COMPANY LTD,469594,700,N/A
BEIS,Met Office,2022-07-06,03 STAFF COSTS T&S,SERVICES,FALKLAND ISLAND COMPANY LTD,469595,700,N/A
BEIS,Met Office,2022-07-06,03 STAFF COSTS T&S,SERVICES,FALKLAND ISLAND COMPANY LTD,469596,700,N/A
BEIS,Met Office,2022-07-11,11 SERVICES,PEOPLE,SWANTECH LOGISTICS LTD,469626,900,769332401
BEIS,Met Office,2022-07-08,06 ACCOMMODATION,CHIEF FINANCIAL OFFICER,BUSINESS STREAM,469627,263.83,945850885
BEIS,Met Office,2022-07-08,06 ACCOMMODATION,CHIEF FINANCIAL OFFICER,ANGLIAN WATER BUSINESS NATIONAL LTD,469628,41.38,51406002
BEIS,Met Office,2022-07-08,06 ACCOMMODATION,CHIEF FINANCIAL OFFICER,POWER NI ENERGY LTD,469629,405.92,617518142
BEIS,Met Office,2022-07-11,06 ACCOMMODATION,MARKETS,Trinity House,469630,750,243120414
BEIS,Met Office,2022-07-08,03 STAFF COSTS T&S,CHIEF FINANCIAL OFFICER,APPLE CENTRAL TAXIS,469632,1865.1,449238720
BEIS,Met Office,2022-07-07,11 SERVICES,CHIEF FINANCIAL OFFICER,British Red Cross Society,469642,1036,706926227
BEIS,Met Office,2022-07-07,11 SERVICES,MARKETS,UNITED KINGDOM RESEARCH AND INNOVATION (UKRI),469643,2870.19,GB287461957
BEIS,Met Office,2022-07-21,13 MISCELLANEOUS,MARKETS,University College London,469644,1000,524371168
BEIS,Met Office,2022-07-11,11 SERVICES,MARKETS,LHR BUSINESS SUPPORT CENTRE LTD,469645,62.65,927365404
BEIS,Met Office,2022-07-07,11 SERVICES,MARKETS,ADOPSTAR,469646,1250,115036848
BEIS,Met Office,2022-07-11,11 SERVICES,PROGRAMMES,RAIN PLUS PLUS LIMITED,469647,23332,-
BEIS,Met Office,2022-07-07,11 SERVICES,TECHNOLOGY AND CIO,AKAMAI TECHNOLOGIES LTD,469648,6067.88,745091237
BEIS,Met Office,2022-07-07,11 SERVICES,TECHNOLOGY AND CIO,AKAMAI TECHNOLOGIES LTD,469648,31959.6,745091237
BEIS,Met Office,2022-07-07,11 SERVICES,TECHNOLOGY AND CIO,AKAMAI TECHNOLOGIES LTD,469648,19697.09,745091237
BEIS,Met Office,2022-07-07,11 SERVICES,TECHNOLOGY AND CIO,AKAMAI TECHNOLOGIES LTD,469648,3771.49,745091237
BEIS,Met Office,2022-07-06,13 MISCELLANEOUS,CHIEF FINANCIAL OFFICER,ARTHUR J. GALLAGHER INSURANCE BROKERS LIMITED,469652,301.2,GB484746209
BEIS,Met Office,2022-07-08,06 ACCOMMODATION,CHIEF FINANCIAL OFFICER,TENNIE FACILITIES PROPERTY MANAGEMENT LTD,469653,207.15,982055803
BEIS,Met Office,2022-07-08,06 ACCOMMODATION,CHIEF FINANCIAL OFFICER,ABOVE THE REST COMMERCIAL CLEANING LTD,469654,565,166969348
BEIS,Met Office,2022-07-08,06 ACCOMMODATION,MARKETS,SSE CONTRACTING LTD,469655,151.79,382894546
BEIS,Met Office,2022-07-08,06 ACCOMMODATION,CHIEF FINANCIAL OFFICER,ADT FIRE AND SECURITY PLC,469656,184.25,413633086
BEIS,Met Office,2022-07-08,06 ACCOMMODATION,CHIEF FINANCIAL OFFICER,TENNIE FACILITIES PROPERTY MANAGEMENT LTD,469659,207.15,982055803
BEIS,Met Office,2022-07-08,06 ACCOMMODATION,CHIEF FINANCIAL OFFICER,TENNIE FACILITIES PROPERTY MANAGEMENT LTD,469660,207.15,982055803
BEIS,Met Office,2022-07-11,06 ACCOMMODATION,CHIEF FINANCIAL OFFICER,TENNIE FACILITIES PROPERTY MANAGEMENT LTD,469661,207.15,982055803
BEIS,Met Office,2022-07-08,11 SERVICES,CHIEF FINANCIAL OFFICER,ADAM PHONES LTD,469662,85.5,538877093
BEIS,Met Office,2022-07-08,06 ACCOMMODATION,CHIEF FINANCIAL OFFICER,POD POINT,469663,350,278743455
BEIS,Met Office,2022-07-07,11 SERVICES,CHIEF FINANCIAL OFFICER,POSTURITE (UK) LTD,469665,119.07,583565114
BEIS,Met Office,2022-07-07,11 SERVICES,OFFICE OF THE CEO,BRYERS LLP,469666,245,609635917
BEIS,Met Office,2022-07-12,07 EQUIPMENT,SERVICES,QUASAR MICROWAVE TECHNOLOGY LTD,469667,1187.63,209385203
BEIS,Met Office,2022-07-12,07 EQUIPMENT,SERVICES,QUASAR MICROWAVE TECHNOLOGY LTD,469667,1197.63,209385203
BEIS,Met Office,2022-07-11,11 SERVICES,PEOPLE,HEALTH ASSURED LIMITED,469668,1120,927 5242 17
BEIS,Met Office,2022-07-20,06 ACCOMMODATION,CHIEF FINANCIAL OFFICER,JAMES & MARCIA BENJAMIN,469693,520,-
BEIS,Met Office,2022-07-08,11 SERVICES,CHIEF FINANCIAL OFFICER,BT CONFERENCING,469694,90.69,245719348
BEIS,Met Office,2022-07-28,FIXTURE & FITTINGS,CHIEF FINANCIAL OFFICER,CBRE MANAGED SERVICES LTD,469695,25588.99,853936883
BEIS,Met Office,2022-07-11,04 CONTRACTORS,PEOPLE,MATRIX SCM LIMITED,469696,271479.09,249 5734 68
BEIS,Met Office,2022-07-08,05 CONSULTANTS,OFFICE OF THE CEO,THE LEGAL DIRECTOR,469697,500,899 338941
BEIS,Met Office,2022-07-07,06 ACCOMMODATION,CHIEF FINANCIAL OFFICER,Belfast International Airport Ltd,469698,24170,617777601
BEIS,Met Office,2022-07-08,13 MISCELLANEOUS,CHIEF FINANCIAL OFFICER,CARDIFF EXECUTIVE CENTRE LTD,469699,10.56,864497378
BEIS,Met Office,2022-07-11,06 ACCOMMODATION,CHIEF FINANCIAL OFFICER,CARDIFF EXECUTIVE CENTRE LTD,469700,2470,864497378
BEIS,Met Office,2022-07-11,11 SERVICES,MARKETS,WORLDPAY (UK) LTD,469701,399.92,991280207
BEIS,Met Office,2022-07-11,11 SERVICES,MARKETS,WORLDPAY (UK) LTD,469713,70.22,991280207
BEIS,Met Office,2022-07-11,11 SERVICES,MARKETS,WORLDPAY (UK) LTD,469714,74.18,991280207
BEIS,Met Office,2022-07-11,11 SERVICES,MARKETS,WORLDPAY (UK) LTD,469715,212.89,991280207
BEIS,Met Office,2022-07-08,06 ACCOMMODATION,CHIEF FINANCIAL OFFICER,RIVER RIDGE,469716,117.42,176286083
BEIS,Met Office,2022-07-12,11 SERVICES,CHIEF FINANCIAL OFFICER,POSTURITE (UK) LTD,469717,297.61,583565114
BEIS,Met Office,2022-07-11,11 SERVICES,TECHNOLOGY AND CIO,BAE SYSTEMS APPLIED INTELLIGENCE LIMITED,469765,4070.5,GB641407169
BEIS,Met Office,2022-07-11,11 SERVICES,TECHNOLOGY AND CIO,BAE SYSTEMS APPLIED INTELLIGENCE LIMITED,469766,9450,GB641407169
BEIS,Met Office,2022-07-11,11 SERVICES,TECHNOLOGY AND CIO,BAE SYSTEMS APPLIED INTELLIGENCE LIMITED,469767,11959.5,GB641407169
BEIS,Met Office,2022-07-11,11 SERVICES,TECHNOLOGY AND CIO,BAE SYSTEMS APPLIED INTELLIGENCE LIMITED,469768,16532.25,GB641407169
BEIS,Met Office,2022-07-11,CYCLESCHEME,OTHER,EDENRED UK (CYCLESCHEME),469770,5554.08,649 503 520
BEIS,Met Office,2022-07-11,11 SERVICES,TECHNOLOGY AND CIO,BAE SYSTEMS APPLIED INTELLIGENCE LIMITED,469771,15180,GB641407169
BEIS,Met Office,2022-07-11,11 SERVICES,TECHNOLOGY AND CIO,BAE SYSTEMS APPLIED INTELLIGENCE LIMITED,469772,16884,GB641407169
BEIS,Met Office,2022-07-11,11 SERVICES,TECHNOLOGY AND CIO,BAE SYSTEMS APPLIED INTELLIGENCE LIMITED,469773,20636,GB641407169
BEIS,Met Office,2022-07-11,11 SERVICES,TECHNOLOGY AND CIO,BAE SYSTEMS APPLIED INTELLIGENCE LIMITED,469774,11880,GB641407169
BEIS,Met Office,2022-07-26,11 SERVICES,PROGRAMMES,University of Edinburgh,469775,51143.2,592950700
BEIS,Met Office,2022-07-11,11 SERVICES,TECHNOLOGY AND CIO,BAE SYSTEMS APPLIED INTELLIGENCE LIMITED,469776,11631.5,GB641407169
BEIS,Met Office,2022-07-11,11 SERVICES,TECHNOLOGY AND CIO,BAE SYSTEMS APPLIED INTELLIGENCE LIMITED,469777,10820,GB641407169
BEIS,Met Office,2022-07-11,11 SERVICES,TECHNOLOGY AND CIO,BAE SYSTEMS APPLIED INTELLIGENCE LIMITED,469778,7504,GB641407169
BEIS,Met Office,2022-07-11,11 SERVICES,TECHNOLOGY AND CIO,BAE SYSTEMS APPLIED INTELLIGENCE LIMITED,469779,10560,GB641407169
BEIS,Met Office,2022-07-11,06 ACCOMMODATION,CHIEF FINANCIAL OFFICER,MOUNT CHARLES GROUP LTD,469780,576.36,517116274
BEIS,Met Office,2022-07-11,11 SERVICES,TECHNOLOGY AND CIO,SKILLTEC LIMITED,469782,292.5,909833105
BEIS,Met Office,2022-07-11,11 SERVICES,TECHNOLOGY AND CIO,SKILLTEC LIMITED,469783,292.5,909833105
BEIS,Met Office,2022-07-27,11 SERVICES,CHIEF FINANCIAL OFFICER,SWISSCOM (SCHWEIZ) AG,469785,94.03,-
BEIS,Met Office,2022-07-11,11 SERVICES,CHIEF FINANCIAL OFFICER,GB GROUP PLC,469788,787.91,539716218
BEIS,Met Office,2022-07-11,06 ACCOMMODATION,CHIEF FINANCIAL OFFICER,South West Water Ltd,469794,576.64,236873674
BEIS,Met Office,2022-07-11,11 SERVICES,CHIEF FINANCIAL OFFICER,EXPONENTIAL-E,469795,412.87,GB798572653
BEIS,Met Office,2022-07-11,13 MISCELLANEOUS,SERVICES,Royal Meteorological Society,469796,101.2,-
BEIS,Met Office,2022-07-12,11 SERVICES,TECHNOLOGY AND CIO,CLOUDREACH EUROPE LIMITED,469798,5150,978187168
BEIS,Met Office,2022-07-12,11 SERVICES,SERVICES,CLOUDREACH EUROPE LIMITED,469799,7300,978187168
BEIS,Met Office,2022-07-11,11 SERVICES,PEOPLE,RESULTS CATALYSTS LTD,469800,1200,811 9181 42
BEIS,Met Office,2022-07-11,11 SERVICES,CHIEF FINANCIAL OFFICER,ANVIL MOBILE LIMITED,469801,370.95,981686175
BEIS,Met Office,2022-07-11,11 SERVICES,CHIEF FINANCIAL OFFICER,LICENCE BUREAU LTD,469802,89.4,820219467
BEIS,Met Office,2022-07-11,03 STAFF COSTS T&S,SERVICES,AIRPORT CAR RENTALS LTD,469803,320,-
BEIS,Met Office,2022-07-12,11 SERVICES,PEOPLE,TP HEALTH LTD,469804,1776,883064608
BEIS,Met Office,2022-07-11,11 SERVICES,CHIEF FINANCIAL OFFICER,MAWASEM LTD,469805,182247.54,197694731
BEIS,Met Office,2022-07-12,11 SERVICES,MARKETS,BJSS LIMITED,469806,2475,613295452
BEIS,Met Office,2022-07-12,11 SERVICES,MARKETS,BJSS LIMITED,469807,19787.5,613295452
BEIS,Met Office,2022-07-12,11 SERVICES,PROGRAMMES,BJSS LIMITED,469808,83825,613295452
BEIS,Met Office,2022-07-11,10 EQUIPMENT MAINTENANCE,SERVICES,BFBS MEDIA LTD,469813,29450,GB 118 496 687
BEIS,Met Office,2022-07-11,11 SERVICES,CHIEF FINANCIAL OFFICER,GAMMA TELECOM LTD,469814,168.88,823820344
BEIS,Met Office,2022-07-11,11 SERVICES,CHIEF FINANCIAL OFFICER,GAMMA TELECOM LTD,469814,27455.26,823820344
BEIS,Met Office,2022-07-27,11 SERVICES,PROGRAMMES,GAMMA TELECOM LTD,469815,4259.31,823820344
BEIS,Met Office,2022-07-27,11 SERVICES,PROGRAMMES,GAMMA TELECOM LTD,469815,2976.29,823820344
BEIS,Met Office,2022-07-21,11 SERVICES,CHIEF FINANCIAL OFFICER,TELEFONICA O2 UK LIMITED,469816,6694.28,778603785
BEIS,Met Office,2022-07-18,03 STAFF COSTS T&S,CHIEF FINANCIAL OFFICER,ENTERPRISE RENT A CAR UK LTD,469817,988.69,215557314
BEIS,Met Office,2022-07-11,13 MISCELLANEOUS,CHIEF FINANCIAL OFFICER,CANON UK LTD,469818,2761.02,523797128
BEIS,Met Office,2022-07-11,13 MISCELLANEOUS,CHIEF FINANCIAL OFFICER,CANON UK LTD,469819,949.14,523797128
BEIS,Met Office,2022-07-11,13 MISCELLANEOUS,CHIEF FINANCIAL OFFICER,CANON UK LTD,469820,11812.72,523797128
BEIS,Met Office,2022-07-11,11 SERVICES,CHIEF FINANCIAL OFFICER,SURE SOUTH ATLANTIC LTD,469821,783.46,-
BEIS,Met Office,2022-07-11,11 SERVICES,CHIEF FINANCIAL OFFICER,SURE SOUTH ATLANTIC LTD,469822,4839.8,-
BEIS,Met Office,2022-07-11,06 ACCOMMODATION,CHIEF FINANCIAL OFFICER,SAFESTORE LTD,469823,2815.28,722887607
BEIS,Met Office,2022-07-11,10 EQUIPMENT MAINTENANCE,SERVICES,YOUNG CALIBRATION LIMITED,469824,2200,673900720
BEIS,Met Office,2022-07-11,11 SERVICES,SERVICES,YOUNG CALIBRATION LIMITED,469824,15,673900720
BEIS,Met Office,2022-07-12,06 ACCOMMODATION,CHIEF FINANCIAL OFFICER,ABOVE THE REST COMMERCIAL CLEANING LTD,469825,565,166969348
BEIS,Met Office,2022-07-11,06 ACCOMMODATION,CHIEF FINANCIAL OFFICER,Lars Communications Ltd,469826,235,531463858
BEIS,Met Office,2022-07-25,13 MISCELLANEOUS,CHIEF FINANCIAL OFFICER,BANNER GROUP LIMITED,469830,4.32,GB391085740
BEIS,Met Office,2022-07-12,06 ACCOMMODATION,CHIEF FINANCIAL OFFICER,EDF ENERGY CUSTOMERS PLC,469831,453273,523041202
BEIS,Met Office,2022-07-12,06 ACCOMMODATION,CHIEF FINANCIAL OFFICER,EDF ENERGY CUSTOMERS PLC,469832,123270.5,523041202
BEIS,Met Office,2022-07-12,06 ACCOMMODATION,CHIEF FINANCIAL OFFICER,EDF ENERGY CUSTOMERS PLC,469833,188344.82,523041202
BEIS,Met Office,2022-07-12,06 ACCOMMODATION,CHIEF FINANCIAL OFFICER,WEST LANCASHIRE BOROUGH COUNCIL,469882,132.16,-
BEIS,Met Office,2022-07-12,08 SOFTWARE LICENCES,TECHNOLOGY AND CIO,DO NOT USE - PHOENIX SOFTWARE LIMITED,469883,-20853.4,755349015
BEIS,Met Office,2022-07-12,08 SOFTWARE LICENCES,TECHNOLOGY AND CIO,DO NOT USE - PHOENIX SOFTWARE LIMITED,469884,-39918.8,755349015
BEIS,Met Office,2022-07-12,08 SOFTWARE LICENCES,TECHNOLOGY AND CIO,DO NOT USE - PHOENIX SOFTWARE LIMITED,469885,-48366.96,755349015
BEIS,Met Office,2022-07-12,08 SOFTWARE LICENCES,TECHNOLOGY AND CIO,DO NOT USE - PHOENIX SOFTWARE LIMITED,469886,-44363.76,755349015
BEIS,Met Office,2022-07-12,08 SOFTWARE LICENCES,TECHNOLOGY AND CIO,DO NOT USE - PHOENIX SOFTWARE LIMITED,469887,-48351.96,755349015
BEIS,Met Office,2022-07-21,11 SERVICES,SCIENCE,University Of Exeter,469907,15051.33,142047795
BEIS,Met Office,2022-07-27,11 SERVICES,TECHNOLOGY AND CIO,BAE SYSTEMS APPLIED INTELLIGENCE LIMITED,469909,11715,GB641407169
BEIS,Met Office,2022-07-21,11 SERVICES,CHIEF FINANCIAL OFFICER,BABBLE CLOUD LIMITED,469911,1230.84,GB206270049
BEIS,Met Office,2022-07-20,11 SERVICES,MARKETS,SPOKE (INTERACTIVE) LTD,469912,700,840156451
BEIS,Met Office,2022-07-21,11 SERVICES,PROGRAMMES,JEREMY BENN ASSOCIATES LIMITED,469913,7848.75,GB 665300941
BEIS,Met Office,2022-07-21,11 SERVICES,PROGRAMMES,JEREMY BENN ASSOCIATES LIMITED,469913,13494.61,GB 665300941
BEIS,Met Office,2022-07-27,08 SOFTWARE LICENCES,MARKETS,FLOODTAGS,469914,21500,-
BEIS,Met Office,2022-07-26,11 SERVICES,CHIEF FINANCIAL OFFICER,CABINET OFFICE - COF LEAD ACCOUNT,469915,33621.67,-
BEIS,Met Office,2022-07-20,08 SOFTWARE LICENCES,TECHNOLOGY AND CIO,Ibm United Kingdom Ltd,469916,9765,107328000
BEIS,Met Office,2022-07-21,11 SERVICES,PEOPLE,ACTIVE LEARNING TEAM LTD,469917,2800,-
BEIS,Met Office,2022-07-21,13 MISCELLANEOUS,SCIENCE,University Of Oxford,469918,333.33,125506730
BEIS,Met Office,2022-07-27,11 SERVICES,TECHNOLOGY AND CIO,BAE SYSTEMS APPLIED INTELLIGENCE LIMITED,469922,1623,GB641407169
BEIS,Met Office,2022-07-25,08 SOFTWARE LICENCES,TECHNOLOGY AND CIO,DXC TECHNOLOGY,469924,9624.36,GB432995915
BEIS,Met Office,2022-07-25,08 SOFTWARE LICENCES,TECHNOLOGY AND CIO,DXC TECHNOLOGY,469924,14976,GB432995915
BEIS,Met Office,2022-07-25,08 SOFTWARE LICENCES,TECHNOLOGY AND CIO,DXC TECHNOLOGY,469924,77446.68,GB432995915
BEIS,Met Office,2022-07-25,08 SOFTWARE LICENCES,TECHNOLOGY AND CIO,DXC TECHNOLOGY,469924,300.96,GB432995915
BEIS,Met Office,2022-07-25,08 SOFTWARE LICENCES,TECHNOLOGY AND CIO,DXC TECHNOLOGY,469924,30091.32,GB432995915
BEIS,Met Office,2022-07-25,08 SOFTWARE LICENCES,TECHNOLOGY AND CIO,DXC TECHNOLOGY,469924,115135.08,GB432995915
BEIS,Met Office,2022-07-25,08 SOFTWARE LICENCES,TECHNOLOGY AND CIO,DXC TECHNOLOGY,469924,145836,GB432995915
BEIS,Met Office,2022-07-25,08 SOFTWARE LICENCES,TECHNOLOGY AND CIO,DXC TECHNOLOGY,469924,324421.2,GB432995915
BEIS,Met Office,2022-07-25,08 SOFTWARE LICENCES,TECHNOLOGY AND CIO,DXC TECHNOLOGY,469924,117450,GB432995915
BEIS,Met Office,2022-07-25,11 SERVICES,MARKETS,Cgi It Uk Limited,469929,548315.28,232615194
BEIS,Met Office,2022-07-21,04 CONTRACTORS,PEOPLE,MATRIX SCM LIMITED,469931,192533.67,249 5734 68
BEIS,Met Office,2022-07-25,06 ACCOMMODATION,CHIEF FINANCIAL OFFICER,BIDVEST NOONAN UK LTD,469934,457.31,GB847176988
BEIS,Met Office,2022-07-25,11 SERVICES,TECHNOLOGY AND CIO,SYNTHESYS SYSTEMS ENGINEERS LTD,469935,1857.6,499309492
BEIS,Met Office,2022-07-20,11 SERVICES,TECHNOLOGY AND CIO,CLOUDREACH EUROPE LIMITED,469936,4872.25,978187168
BEIS,Met Office,2022-07-21,11 SERVICES,PEOPLE,ECA INTERNATIONAL,469937,8449.5,238549825
BEIS,Met Office,2022-07-27,11 SERVICES,MARKETS,ACCELERATION EMARKETING,469938,4827.24,848940776
BEIS,Met Office,2022-07-27,06 ACCOMMODATION,CHIEF FINANCIAL OFFICER,MERCURY CONSTRUCTION,469942,4633.6,892673673
BEIS,Met Office,2022-07-29,11 SERVICES,PEOPLE,IBEX GALE LIMITED,469943,6075,179526368
BEIS,Met Office,2022-07-25,11 SERVICES,SERVICES,FLYFORM LTD,469944,497.5,237333808
BEIS,Met Office,2022-07-21,11 SERVICES,PEOPLE,IBEX GALE LIMITED,469945,2250,179526368
BEIS,Met Office,2022-07-25,08 SOFTWARE LICENCES,TECHNOLOGY AND CIO,BOXXE,469946,25149.43,734245248
BEIS,Met Office,2022-07-26,11 SERVICES,OFFICE OF THE CEO,HAYMARKET MEDIA GROUP LTD,469964,725,GB232584272
BEIS,Met Office,2022-07-25,06 ACCOMMODATION,CHIEF FINANCIAL OFFICER,EDF ENERGY CUSTOMERS PLC,469965,26877.13,523041202
BEIS,Met Office,2022-07-22,06 ACCOMMODATION,CHIEF FINANCIAL OFFICER,BUSINESS SUPPORT CENTRE LTD,469966,25.31,927365208
BEIS,Met Office,2022-07-21,06 ACCOMMODATION,CHIEF FINANCIAL OFFICER,University Of Oxford,469967,3750,125506730
BEIS,Met Office,2022-07-22,06 ACCOMMODATION,CHIEF FINANCIAL OFFICER,POWER NI ENERGY LTD,469968,98.05,617518142
BEIS,Met Office,2022-07-25,06 ACCOMMODATION,CHIEF FINANCIAL OFFICER,South West Water Ltd,469969,6167.7,236873674
BEIS,Met Office,2022-07-21,11 SERVICES,CHIEF FINANCIAL OFFICER,JERSEY TELECOM,469970,1284.32,NOTVATREG
BEIS,Met Office,2022-07-25,11 SERVICES,CHIEF FINANCIAL OFFICER,SURE SOUTH ATLANTIC LTD,469971,2168.79,NOVATREG
BEIS,Met Office,2022-07-22,11 SERVICES,CHIEF FINANCIAL OFFICER,SURE SOUTH ATLANTIC LTD (ST HELENA),469972,1650,30005
BEIS,Met Office,2022-07-26,11 SERVICES,MARKETS,BEIS,469973,540574.55,888825550
BEIS,Met Office,2022-07-25,11 SERVICES,CHIEF FINANCIAL OFFICER,GIBRALTAR NYNEX COMMUNICATIONS LTD,469974,660,NOVAT
BEIS,Met Office,2022-07-29,11 SERVICES,CHIEF FINANCIAL OFFICER,BT CONFERENCING,469975,95.67,245719348
BEIS,Met Office,2022-07-21,06 ACCOMMODATION,CHIEF FINANCIAL OFFICER,Scottish Government,469977,34272,888842551
BEIS,Met Office,2022-07-21,06 ACCOMMODATION,CHIEF FINANCIAL OFFICER,Scottish Government,469978,34272,888842551
BEIS,Met Office,2022-07-22,11 SERVICES,PROGRAMMES,BITPOD LIMITED,469981,5301.6,124 9359 03
BEIS,Met Office,2022-07-25,06 ACCOMMODATION,CHIEF FINANCIAL OFFICER,South West Water Ltd,469982,-629.97,236873674
BEIS,Met Office,2022-07-22,06 ACCOMMODATION,CHIEF FINANCIAL OFFICER,South West Water Ltd,469983,72.44,236873674
BEIS,Met Office,2022-07-22,06 ACCOMMODATION,CHIEF FINANCIAL OFFICER,ANGLIAN WATER BUSINESS NATIONAL LTD,469984,31.68,51406002
BEIS,Met Office,2022-07-27,11 SERVICES,CHIEF FINANCIAL OFFICER,SWISSCOM (SCHWEIZ) AG,469985,94.74,-
BEIS,Met Office,2022-07-25,11 SERVICES,CHIEF FINANCIAL OFFICER,BT GLOBAL SERVICES,469986,780.93,245719348
BEIS,Met Office,2022-07-22,06 ACCOMMODATION,CHIEF FINANCIAL OFFICER,A BOTHROYD,470003,1955,N/A
BEIS,Met Office,2022-07-22,06 ACCOMMODATION,MARKETS,Northern Lighthouse Board,470004,529.93,268628908
BEIS,Met Office,2022-07-22,06 ACCOMMODATION,MARKETS,Northern Lighthouse Board,470005,2903.7,268628908
BEIS,Met Office,2022-07-22,06 ACCOMMODATION,CHIEF FINANCIAL OFFICER,SIMEC LOCHABER HYDROPOWER 2 LTD,470007,60,336173953
BEIS,Met Office,2022-07-22,06 ACCOMMODATION,CHIEF FINANCIAL OFFICER,ST MODWEN VENTURES LTD,470008,433.85,975081008
BEIS,Met Office,2022-07-25,08 SOFTWARE LICENCES,TECHNOLOGY AND CIO,CASTELLAN SOLUTIONS LTD.,470049,77599.92,747 4527 08
BEIS,Met Office,2022-07-25,03 STAFF COSTS T&S,CHIEF FINANCIAL OFFICER,ENTERPRISE RENT A CAR UK LTD,470050,1749.71,215557314
BEIS,Met Office,2022-07-25,03 STAFF COSTS T&S,CHIEF FINANCIAL OFFICER,ALLSTAR BUSINESS SOLUTIONS LTD,470051,3722.82,747880191
BEIS,Met Office,2022-07-26,INFORMATION TECHNOLOGY,TECHNOLOGY AND CIO,COMPUTACENTER (UK) LTD,470052,8038.8,490334648
BEIS,Met Office,2022-07-26,INFORMATION TECHNOLOGY,TECHNOLOGY AND CIO,COMPUTACENTER (UK) LTD,470053,269.22,490334648
BEIS,Met Office,2022-07-26,INFORMATION TECHNOLOGY,TECHNOLOGY AND CIO,COMPUTACENTER (UK) LTD,470054,11958.24,490334648
BEIS,Met Office,2022-07-26,FIXTURE & FITTINGS,CHIEF FINANCIAL OFFICER,THORLUX LIGHTING,470055,1057.3,GB 109 939 440
BEIS,Met Office,2022-07-25,11 SERVICES,TECHNOLOGY AND CIO,NTT DATA UK LTD,470056,37828,159334590
BEIS,Met Office,2022-07-27,11 SERVICES,TECHNOLOGY AND CIO,BAE SYSTEMS APPLIED INTELLIGENCE LIMITED,470057,14070,GB641407169
BEIS,Met Office,2022-07-27,11 SERVICES,TECHNOLOGY AND CIO,BAE SYSTEMS APPLIED INTELLIGENCE LIMITED,470058,660,GB641407169
BEIS,Met Office,2022-07-27,11 SERVICES,TECHNOLOGY AND CIO,BAE SYSTEMS APPLIED INTELLIGENCE LIMITED,470059,7574,GB641407169
BEIS,Met Office,2022-07-27,11 SERVICES,TECHNOLOGY AND CIO,BAE SYSTEMS APPLIED INTELLIGENCE LIMITED,470060,7762.5,GB641407169
BEIS,Met Office,2022-07-27,11 SERVICES,TECHNOLOGY AND CIO,BAE SYSTEMS APPLIED INTELLIGENCE LIMITED,470062,11256,GB641407169
BEIS,Met Office,2022-07-25,06 ACCOMMODATION,CHIEF FINANCIAL OFFICER,ST MODWEN VENTURES LTD,470063,12.3,975081008
BEIS,Met Office,2022-07-25,06 ACCOMMODATION,CHIEF FINANCIAL OFFICER,TOTAL GAS & POWER LIMITED,470064,497.44,689638949
BEIS,Met Office,2022-07-25,PLANT AND EQUIPMENT,SERVICES,QUASAR MICROWAVE TECHNOLOGY LTD,470066,476.06,209385203
BEIS,Met Office,2022-07-25,07 EQUIPMENT,SERVICES,QUASAR MICROWAVE TECHNOLOGY LTD,470066,16,209385203
BEIS,Met Office,2022-07-25,07 EQUIPMENT,SERVICES,QUASAR MICROWAVE TECHNOLOGY LTD,470066,476.06,209385203
BEIS,Met Office,2022-07-26,06 ACCOMMODATION,CHIEF FINANCIAL OFFICER,SHETLAND CLEANING SERVICES,470067,769.57,430028404
BEIS,Met Office,2022-07-27,12 INTERNATIONAL,MARKETS,SWANTECH LOGISTICS LTD,470068,11567.17,769332401
BEIS,Met Office,2022-07-25,06 ACCOMMODATION,CHIEF FINANCIAL OFFICER,MORAY COUNCIL,470069,3112.5,663755506
BEIS,Met Office,2022-07-27,STOCK,SERVICES,YORLAB,470070,0,288849088
BEIS,Met Office,2022-07-27,STOCK,SERVICES,YORLAB,470070,0,288849088
BEIS,Met Office,2022-07-27,TRADE CREDITORS,SERVICES,YORLAB,470070,1596,288849088
BEIS,Met Office,2022-07-27,TRADE CREDITORS,SERVICES,YORLAB,470070,798,288849088
BEIS,Met Office,2022-07-27,11 SERVICES,SERVICES,YORLAB,470070,17,288849088
BEIS,Met Office,2022-07-27,12 INTERNATIONAL,MARKETS,MACITECHSY SOLUTIONS,470071,640,-
BEIS,Met Office,2022-07-27,13 MISCELLANEOUS,CHIEF FINANCIAL OFFICER,CANON UK LTD,470073,590.68,523797128
BEIS,Met Office,2022-07-27,13 MISCELLANEOUS,CHIEF FINANCIAL OFFICER,CANON UK LTD,470073,1.78,523797128
BEIS,Met Office,2022-07-27,13 MISCELLANEOUS,CHIEF FINANCIAL OFFICER,CANON UK LTD,470073,4.16,523797128
BEIS,Met Office,2022-07-27,13 MISCELLANEOUS,CHIEF FINANCIAL OFFICER,CANON UK LTD,470073,2.95,523797128
BEIS,Met Office,2022-07-27,13 MISCELLANEOUS,CHIEF FINANCIAL OFFICER,CANON UK LTD,470073,5.99,523797128
BEIS,Met Office,2022-07-27,13 MISCELLANEOUS,CHIEF FINANCIAL OFFICER,CANON UK LTD,470073,47.49,523797128
BEIS,Met Office,2022-07-27,13 MISCELLANEOUS,CHIEF FINANCIAL OFFICER,CANON UK LTD,470073,34.72,523797128
BEIS,Met Office,2022-07-27,13 MISCELLANEOUS,CHIEF FINANCIAL OFFICER,CANON UK LTD,470073,6.2,523797128
BEIS,Met Office,2022-07-26,13 MISCELLANEOUS,SERVICES,Royal Meteorological Society,470075,136,-
BEIS,Met Office,2022-07-27,11 SERVICES,SERVICES,APPLIED SATELLITE TECHNOLOGY SYSTEMS LTD,470080,600.54,720108683
BEIS,Met Office,2022-07-27,11 SERVICES,SERVICES,APPLIED SATELLITE TECHNOLOGY SYSTEMS LTD,470082,10421.02,720108683
BEIS,Met Office,2022-07-25,08 SOFTWARE LICENCES,TECHNOLOGY AND CIO,COMPUTACENTER (UK) LTD,470084,1080.02,490334648
BEIS,Met Office,2022-07-25,08 SOFTWARE LICENCES,TECHNOLOGY AND CIO,COMPUTACENTER (UK) LTD,470085,2721,490334648
BEIS,Met Office,2022-07-25,08 SOFTWARE LICENCES,TECHNOLOGY AND CIO,COMPUTACENTER (UK) LTD,470085,544.32,490334648
BEIS,Met Office,2022-07-25,11 SERVICES,PEOPLE,TP HEALTH LTD,470086,1236.3,883064608
BEIS,Met Office,2022-07-26,11 SERVICES,MARKETS,NATS (EN ROUTE) PLC,470087,269500,440379456004
BEIS,Met Office,2022-07-27,11 SERVICES,PROGRAMMES,University Of Reading,470088,41175.5,200012659
BEIS,Met Office,2022-07-25,07 EQUIPMENT,SERVICES,CLARKE LANE ENGINEERING LTD,470089,212.1,412068487
BEIS,Met Office,2022-07-25,07 EQUIPMENT,SERVICES,CLARKE LANE ENGINEERING LTD,470089,15,412068487
BEIS,Met Office,2022-07-25,07 EQUIPMENT,SERVICES,CLARKE LANE ENGINEERING LTD,470089,618,412068487
BEIS,Met Office,2022-07-25,07 EQUIPMENT,SERVICES,CLARKE LANE ENGINEERING LTD,470089,75,412068487
BEIS,Met Office,2022-07-27,12 INTERNATIONAL,MARKETS,SWANTECH LOGISTICS LTD,470090,1059,769332401
BEIS,Met Office,2022-07-27,12 INTERNATIONAL,MARKETS,SWANTECH LOGISTICS LTD,470091,180,769332401
BEIS,Met Office,2022-07-27,12 INTERNATIONAL,MARKETS,MACITECHSY SOLUTIONS,470092,1600,-
BEIS,Met Office,2022-07-27,12 INTERNATIONAL,MARKETS,MACITECHSY SOLUTIONS,470092,1111.7,-
BEIS,Met Office,2022-07-25,11 SERVICES,PEOPLE,TP HEALTH LTD,470093,1170,883064608
BEIS,Met Office,2022-07-27,11 SERVICES,SERVICES,Trinity House,470095,2240,243120414
BEIS,Met Office,2022-07-25,11 SERVICES,SERVICES,Trinity House,470096,25006.67,243120414
BEIS,Met Office,2022-07-26,11 SERVICES,SERVICES,Landmark Information Group Ltd,470097,188400.4,634509735
BEIS,Met Office,2022-07-27,06 ACCOMMODATION,CHIEF FINANCIAL OFFICER,GROSVENOR SYSTEMS LTD,470100,7694.88,342873151
BEIS,Met Office,2022-07-25,04 CONTRACTORS,PEOPLE,MATRIX SCM LIMITED,470101,181898.92,249 5734 68
BEIS,Met Office,2022-07-26,FIXTURE & FITTINGS,CHIEF FINANCIAL OFFICER,THORLUX LIGHTING,470102,1416.85,GB 109 939 440
BEIS,Met Office,2022-07-25,06 ACCOMMODATION,CHIEF FINANCIAL OFFICER,Mitie Landscapes Ltd,470103,3792,GB 416 706 654
BEIS,Met Office,2022-07-27,06 ACCOMMODATION,CHIEF FINANCIAL OFFICER,GROSVENOR SYSTEMS LTD,470105,-7694.88,342873151
BEIS,Met Office,2022-07-27,06 ACCOMMODATION,CHIEF FINANCIAL OFFICER,GROSVENOR SYSTEMS LTD,470106,7674.29,342873151
BEIS,Met Office,2022-07-27,11 SERVICES,MARKETS,ULTRA ELECTRONICS LTD NUCLEAR CONTROL SYSTEMS,470109,241567.46,123340754
BEIS,Met Office,2022-07-27,11 SERVICES,MARKETS,ULTRA ELECTRONICS LTD NUCLEAR CONTROL SYSTEMS,470110,8152.88,123340754
BEIS,Met Office,2022-07-27,11 SERVICES,MARKETS,ULTRA ELECTRONICS LTD NUCLEAR CONTROL SYSTEMS,470111,8152.88,123340754
BEIS,Met Office,2022-07-27,11 SERVICES,MARKETS,ULTRA ELECTRONICS LTD NUCLEAR CONTROL SYSTEMS,470112,8152.88,123340754
BEIS,Met Office,2022-07-27,11 SERVICES,PROGRAMMES,University Of Oxford,470113,9999.94,125506730
BEIS,Met Office,2022-07-27,11 SERVICES,TECHNOLOGY AND CIO,NEXUS OPEN SYSTEMS LTD,470114,3585,723221673
BEIS,Met Office,2022-07-27,11 SERVICES,SERVICES,MADE TECH,470115,9982.14,938565184
BEIS,Met Office,2022-07-27,11 SERVICES,SERVICES,MADE TECH,470116,3400,938565184
BEIS,Met Office,2022-07-25,06 ACCOMMODATION,CHIEF FINANCIAL OFFICER,Severn Trent Water Ltd,470118,208.35,486985565
BEIS,Met Office,2022-07-27,03 STAFF COSTS T&S,SERVICES,HCR LTD,470160,124.26,733 7205 46
BEIS,Met Office,2022-07-27,11 SERVICES,PROGRAMMES,JEREMY BENN ASSOCIATES LIMITED,470161,29589,GB 665300941
BEIS,Met Office,2022-07-27,06 ACCOMMODATION,CHIEF FINANCIAL OFFICER,Biffa Waste Services Ltd,470162,150,537911627
BEIS,Met Office,2022-07-27,11 SERVICES,CHIEF FINANCIAL OFFICER,BT GLOBAL SERVICES,470167,11584.21,245719348
BEIS,Met Office,2022-07-27,11 SERVICES,CHIEF FINANCIAL OFFICER,BT plc,470168,12779.91,245719348
BEIS,Met Office,2022-07-27,06 ACCOMMODATION,CHIEF FINANCIAL OFFICER,ENVIRONMENT AGENCY RECEIPTS,470169,75,662490134
BEIS,Met Office,2022-07-27,06 ACCOMMODATION,CHIEF FINANCIAL OFFICER,Severn Trent Water Ltd,470170,17.47,486985565
BEIS,Met Office,2022-07-29,11 SERVICES,PEOPLE,RIVER TRAINING AND HR,470185,800,-
BEIS,Met Office,2022-07-28,11 SERVICES,PEOPLE,RIVER TRAINING AND HR,470186,250,-
BEIS,Met Office,2022-07-27,03 STAFF COSTS T&S,SERVICES,CHARLIE'S TRAVEL LTD,470187,163.23,783848277
BEIS,Met Office,2022-07-27,PAYE AND VAT,OTHER,HMRC,470190,3936612.64,-
BEIS,Met Office,2022-07-27,06 ACCOMMODATION,CHIEF FINANCIAL OFFICER,DEPARTMENT OF FINANCE AND PERSONNEL,470201,44800.38,888808059
BEIS,Met Office,2022-07-28,03 STAFF COSTS T&S,CHIEF FINANCIAL OFFICER,ENTERPRISE RENT A CAR UK LTD,470210,88.48,215557314
BEIS,Met Office,2022-07-29,08 SOFTWARE LICENCES,SERVICES,COGNIZANT WORLDWIDE LIMITED,470240,9977.25,123382928
BEIS,Met Office,2022-07-28,03 STAFF COSTS T&S,CHIEF FINANCIAL OFFICER,ENTERPRISE RENT A CAR UK LTD,470241,2438.51,215557314
BEIS,Met Office,2022-07-28,11 SERVICES,TECHNOLOGY AND CIO,NORBECK LTD,470246,1419.04,543334559
BEIS,Met Office,2022-07-29,11 SERVICES,PROGRAMMES,University Of Exeter,470247,28725.9,142047795
BEIS,Met Office,2022-07-28,07 EQUIPMENT,TECHNOLOGY AND CIO,COMPUTACENTER (UK) LTD,470248,8680,490334648
BEIS,Met Office,2022-07-28,06 ACCOMMODATION,CHIEF FINANCIAL OFFICER,CBRE MANAGED SERVICES LTD,470250,60790.3,853936883
BEIS,Met Office,2022-07-28,06 ACCOMMODATION,CHIEF FINANCIAL OFFICER,CBRE MANAGED SERVICES LTD,470251,22628.62,853936883
BEIS,Met Office,2022-07-28,06 ACCOMMODATION,CHIEF FINANCIAL OFFICER,CBRE MANAGED SERVICES LTD,470252,149176.92,853936883
BEIS,Met Office,2022-07-28,06 ACCOMMODATION,CHIEF FINANCIAL OFFICER,CBRE MANAGED SERVICES LTD,470253,23260.52,853936883
BEIS,Met Office,2022-07-28,06 ACCOMMODATION,CHIEF FINANCIAL OFFICER,CBRE MANAGED SERVICES LTD,470254,40856.76,853936883
BEIS,Met Office,2022-07-28,06 ACCOMMODATION,CHIEF FINANCIAL OFFICER,CBRE MANAGED SERVICES LTD,470254,4678.02,853936883
BEIS,Met Office,2022-07-29,11 SERVICES,CHIEF FINANCIAL OFFICER,MITIE SECURITY LTD,470258,3117,416706654
BEIS,Met Office,2022-07-29,11 SERVICES,CHIEF FINANCIAL OFFICER,MITIE SECURITY LTD,470258,7273.5,416706654
BEIS,Met Office,2022-07-29,11 SERVICES,CHIEF FINANCIAL OFFICER,MITIE SECURITY LTD,470259,20780.59,416706654
BEIS,Met Office,2022-07-29,06 ACCOMMODATION,CHIEF FINANCIAL OFFICER,CBRE MANAGED SERVICES LTD,470262,15859.67,853936883
BEIS,Met Office,2022-07-29,06 ACCOMMODATION,CHIEF FINANCIAL OFFICER,CBRE MANAGED SERVICES LTD,470263,27142.61,853936883
BEIS,Met Office,2022-07-28,10 EQUIPMENT MAINTENANCE,TECHNOLOGY AND CIO,COMPUTACENTER (UK) LTD,470264,3454.86,490334648
BEIS,Met Office,2022-07-28,10 EQUIPMENT MAINTENANCE,TECHNOLOGY AND CIO,COMPUTACENTER (UK) LTD,470265,39670.74,490334648
BEIS,Met Office,2022-07-29,11 SERVICES,PROGRAMMES,University Of East Anglia,470266,18679.41,595183505
BEIS,Met Office,2022-07-29,11 SERVICES,CHIEF FINANCIAL OFFICER,Morton Fraser LLP,470267,425,269129336
BEIS,Met Office,2022-07-28,11 SERVICES,SERVICES,Landmark Information Group Ltd,470268,182630.6,634509735
BEIS,Met Office,2022-07-28,06 ACCOMMODATION,CHIEF FINANCIAL OFFICER,South West Water Ltd,470269,1259.94,236873674
BEIS,Met Office,2022-07-29,06 ACCOMMODATION,CHIEF FINANCIAL OFFICER,GREENSTAR CLEANERS LTD,470270,204.6,492376222
BEIS,Met Office,2022-07-29,13 MISCELLANEOUS,SCIENCE,UKRI,470273,1000,GB287461957
BEIS,Met Office,2022-07-29,11 SERVICES,CHIEF FINANCIAL OFFICER,WEBEX COMMUNICATIONS UK LTD,470275,209.92,815974302
BEIS,Met Office,2022-07-29,11 SERVICES,PROGRAMMES,University Of Oxford,470276,2500,125506730
BEIS,Met Office,2022-07-29,04 CONTRACTORS,PEOPLE,MATRIX SCM LIMITED,470282,245378.04,249 5734 68
BEIS,Met Office,2022-07-29,11 SERVICES,CHIEF FINANCIAL OFFICER,LEASEDRIVE RENTAL MANAGEMENT LTD,470283,772.73,733546040
BEIS,Met Office,2022-07-29,11 SERVICES,CHIEF FINANCIAL OFFICER,BT plc,470284,876.22,245719348
BEIS,Met Office,2022-07-29,06 ACCOMMODATION,MARKETS,SCOTTISH HYDRO-ELECTRIC,470289,159.37,553769603
BEIS,Met Office,2022-07-22,07 EQUIPMENT,CHIEF FINANCIAL OFFICER,NATWEST COMMERCIAL CARDS DIVISION,469961,8087.73,N/A
BEIS,Met Office,2022-07-22,TRADE CREDITORS,OTHER,NATWEST COMMERCIAL CARDS DIVISION,469962,145813.43,N/A
BEIS,Met Office,2022-07-20,12 INTERNATIONAL,MARKETS,REDACTED PERSONAL DATA,10706,2840.79,-
BEIS,Met Office,2022-07-07,11 SERVICES,PEOPLE,REDACTED PERSONAL DATA,469650,1920,143043312
BEIS,Met Office,2022-07-11,11 SERVICES,PEOPLE,REDACTED PERSONAL DATA,469651,3961,143043312
BEIS,Met Office,2022-07-22,06 ACCOMMODATION,CHIEF FINANCIAL OFFICER,REDACTED PERSONAL DATA,470006,572.64,NOT VAT REGD
BEIS,Met Office,2022-07-25,11 SERVICES,CHIEF FINANCIAL OFFICER,REDACTED PERSONAL DATA,470072,374,729159704
BEIS,Met Office,2022-07-29,06 ACCOMMODATION,CHIEF FINANCIAL OFFICER,REDACTED PERSONAL DATA,470261,10943.26,617358920
